bitfinex-derivatives/quotes_ETHF0:USTF0_20220108
["timestamp","ask_amount","ask_price","bid_price","bid_amount"]
[1641679381347,2.00479,3083.0,3082.3,2.00479]
[1641679381547,1.5,3082.5,3081.7,1.62211264]
[1641679381746,1.5,3082.3,3081.7,1.62211264]
[1641679382147,2.1534,3082.3,3081.7,1.62211264]
[1641679382350,0.6534,3082.3,3081.7,1.62211264]
[1641679382651,2.1534,3082.3,3081.7,1.62211264]
[1641679383048,2.1534,3082.3,3081.3,1.62232053]
[1641679383448,3.50186225,3082.3,3081.3,1.62232053]
[1641679383647,2.00479,3082.0,3081.3,3.62711053]
[1641679384047,2.00479,3082.0,3081.3,2.00479]
[1641679384251,2.00479,3082.0,3081.4,0.640787]
[1641679384850,2.00479,3082.0,3081.3,2.66676]
[1641679385060,2.00479,3082.0,3081.3,2.00479]
[1641679385852,2.00479,3082.0,3081.4,0.66197]
[1641679386054,1.34846225,3082.3,3081.6,1.62217316]
[1641679386252,1.5,3083.2,3081.8,1.62202844]
[1641679386454,1.5,3083.2,3081.7,0.640787]
[1641679386654,0.81452381,3082.6,3081.7,0.640787]
[1641679387455,0.81452381,3082.6,3081.8,1.5]
[1641679387658,0.81452381,3082.6,3082.4,14.05]
[1641679387858,0.81452381,3083.1,3082.5,15.55]
[1641679388056,0.81452381,3083.1,3082.7,14.05]
[1641679388256,0.81452381,3083.1,3083.0,1.62138148]
[1641679388457,0.81452381,3083.1,3083.0,2.26216848]
[1641679388658,0.81452381,3083.1,3083.0,16.97413848]
[1641679389260,2.03084657,3084.0,3083.0,16.97413848]
[1641679389460,1.28983939,3084.2,3083.0,16.97413848]
[1641679389461,0.82296432,3083.9,3083.0,16.97413848]
[1641679389661,0.82296432,3083.9,3083.6,2.00479]
[1641679389859,0.82296432,3083.9,3083.6,2.84409]
[1641679390559,0.82296432,3083.9,3083.7,1.302757]
[1641679390760,2.00479,3084.3,3083.7,2.92380468]
[1641679390959,2.00479,3084.3,3083.7,1.302757]
[1641679393062,0.9920666,3084.8,3083.8,14.05]
[1641679393262,35.2613,3085.1,3083.8,14.05]
[1641679393465,1.26373665,3085.6,3084.2,1.6207902]
[1641679393666,2.00479,3085.4,3084.7,2.00479]
[1641679393863,2.00479,3085.4,3084.7,2.90759]
[1641679394064,2.00479,3085.4,3084.8,1.302757]
[1641679394465,1.5,3085.3,3084.8,0.66197]
[1641679394763,2.00479,3085.4,3084.7,2.00479]
[1641679395566,0.15585996,3085.3,3084.7,2.00479]
[1641679396167,0.15585996,3085.3,3084.8,0.640787]
[1641679396567,0.15585996,3085.3,3084.7,2.87459]
[1641679397570,0.15585996,3085.3,3084.8,0.66197]
[1641679398170,0.15585996,3085.3,3084.9,14.690787]
[1641679398369,0.15585996,3085.3,3085.0,0.66197]
[1641679398780,0.15585996,3085.3,3085.0,2.28234]
[1641679398969,0.15585996,3085.3,3085.0,16.33234]
[1641679399171,0.15585996,3085.3,3085.0,2.28234]
[1641679399571,2.5816333,3085.7,3085.0,2.28234]
[1641679399873,2.70779543,3085.9,3085.4,2.00479]
[1641679400074,1.22840406,3086.0,3085.4,2.81279]
[1641679400272,1.22840406,3086.0,3085.4,3.47476]
[1641679401272,0.15585996,3085.9,3085.4,3.47476]
[1641679401473,0.15585996,3085.9,3085.8,1.61994738]
[1641679401673,0.15585996,3085.9,3085.8,4.92749438]
[1641679401873,0.15585996,3085.9,3085.8,3.307547]
[1641679402875,2.00479,3086.4,3085.8,3.307547]
[1641679404578,0.91026207,3086.3,3085.8,2.66676]
[1641679405583,0.91026207,3086.3,3085.8,3.307547]
[1641679407187,0.91026207,3086.3,3085.8,2.66676]
[1641679407388,0.91026207,3086.3,3085.8,2.00479]
[1641679408190,1.5,3086.1,3085.8,2.00479]
[1641679408791,0.91026207,3086.3,3085.8,2.00479]
[1641679410292,1.5,3086.1,3085.8,2.00479]
[1641679410491,1.5,3085.9,3085.4,2.00479]
[1641679410692,2.1575,3086.1,3085.4,2.00479]
[1641679410890,0.081,3086.0,3085.4,2.00479]
[1641679411491,1.09500737,3085.9,3085.4,2.00479]
[1641679411691,2.00479,3085.8,3085.0,2.00479]
[1641679411891,2.00479,3085.8,3085.1,1.302757]
[1641679412092,2.00479,3085.8,3085.1,1.994057]
[1641679413493,2.00479,3085.8,3085.1,0.6913]
[1641679413693,2.00479,3085.8,3085.0,2.00479]
[1641679413896,2.00479,3085.8,3085.1,0.66197]
[1641679414297,1.5,3085.2,3085.0,2.00479]
[1641679414494,0.08103,3085.7,3085.0,2.00479]
[1641679415594,1.17060027,3085.6,3085.0,2.00479]
[1641679415897,2.00479,3085.4,3085.0,2.00479]
[1641679416694,2.00479,3085.4,3085.0,2.645577]
[1641679417095,2.00479,3085.4,3085.1,0.66197]
[1641679417294,2.00479,3085.4,3085.1,1.59117]
[1641679417694,2.00479,3085.8,3085.1,1.59117]
[1641679417896,2.00479,3086.4,3085.2,15.55]
[1641679418695,2.00479,3086.4,3085.4,15.67013373]
[1641679419098,2.00479,3086.4,3085.4,1.62013373]
[1641679419300,2.00479,3086.4,3085.5,0.081]
[1641679419697,2.00479,3086.4,3085.8,2.00479]
[1641679419899,2.00479,3086.4,3085.9,1.302757]
[1641679420598,33.4304,3087.0,3086.3,1.61966139]
[1641679420798,34.6381,3087.9,3086.4,0.66197]
[1641679421001,34.4166,3087.8,3086.5,0.08097]
[1641679421199,34.4166,3087.8,3086.5,14.779]
[1641679421401,34.4166,3087.8,3086.5,0.729]
[1641679421698,34.4166,3087.8,3086.7,2.00479]
[1641679421899,2.00479,3087.5,3086.7,2.00479]
[1641679422200,2.00479,3087.5,3086.7,2.66676]
[1641679422498,1.19359758,3087.3,3086.7,2.66676]
[1641679424602,1.19359758,3087.3,3086.8,0.640787]
[1641679424803,1.19359758,3087.3,3086.9,0.66197]
[1641679426709,2.00479,3087.5,3086.9,0.66197]
[1641679426910,2.00479,3087.5,3087.0,14.05]
[1641679427110,2.00479,3087.5,3087.2,15.66918934]
[1641679427310,2.00479,3087.8,3087.2,15.66918934]
[1641679427710,2.00279,3087.8,3087.3,14.71197]
[1641679428914,2.00279,3087.8,3087.3,0.66197]
[1641679429314,2.00479,3088.2,3087.3,0.66197]
[1641679429516,2.00479,3088.2,3087.3,14.71197]
[1641679429715,2.00479,3088.2,3087.3,0.66197]
[1641679430115,2.00479,3088.2,3087.5,1.61907399]
[1641679430314,2.00479,3088.2,3087.5,0.7026]
[1641679430516,1.5,3087.6,3087.5,0.7026]
[1641679430716,1.5,3088.0,3087.5,0.7026]
[1641679430918,0.08096,3088.1,3087.5,0.7026]
[1641679431321,1.29193968,3088.0,3087.5,0.7026]
[1641679431616,1.5,3087.7,3086.5,0.7531]
[1641679431817,0.08096,3088.1,3088.0,7.20806032]
[1641679432018,0.08094,3088.2,3088.0,7.20806032]
[1641679432217,0.08094,3088.2,3086.5,2.2531]
[1641679432218,1.61966926,3088.1,3087.2,0.8807]
[1641679432417,0.08096,3088.0,3087.2,0.8807]
[1641679433018,0.08096,3088.2,3087.2,0.8807]
[1641679433519,0.87421792,3088.1,3087.2,0.8807]
[1641679435923,2.00479,3088.2,3087.8,1.5]
[1641679436124,5.414,3088.6,3087.9,1.302757]
[1641679436324,0.4834,3088.7,3087.9,3.73038461]
[1641679436529,71.04544,3089.3,3087.9,3.73038461]
[1641679436824,35.3811,3089.3,3088.1,1.5]
[1641679437025,36.25183281,3089.3,3088.1,1.5]
[1641679437226,36.25183281,3089.3,3087.9,1.449587]
[1641679437428,36.25183281,3089.3,3088.1,1.5]
[1641679437627,36.25183281,3089.3,3088.0,14.05]
[1641679437827,2.00479,3088.8,3088.7,1.5]
[1641679438032,2.00479,3088.8,3088.7,2.1842]
[1641679438527,2.00479,3088.8,3088.7,2.84617]
[1641679440438,2.00479,3089.1,3088.7,2.84617]
[1641679440638,34.5191,3089.9,3089.0,3.11822772]
[1641679440838,5.414,3090.5,3089.7,1.5]
[1641679441040,35.1265,3090.4,3089.8,1.302757]
[1641679441241,5.414,3090.5,3089.8,1.302757]
[1641679441439,0.08092,3090.7,3089.8,1.302757]
[1641679441839,2.00479,3090.3,3089.8,1.302757]
[1641679442542,2.00479,3090.6,3090.2,1.5]
[1641679442941,2.00479,3090.6,3090.1,2.16197]
[1641679443344,2.00479,3090.6,3089.6,2.00479]
[1641679443742,0.08089,3090.5,3089.6,2.00479]
[1641679444041,0.08089,3090.5,3089.0,1.5]
[1641679444243,0.97081193,3090.2,3088.3,0.08089]
[1641679444442,0.08092,3090.1,3088.3,1.5]
[1641679444643,0.93242,3090.1,3088.3,1.5]
[1641679444843,0.6866,3089.9,3088.3,1.5]
[1641679445043,0.93242,3090.1,3088.3,1.5]
[1641679445044,0.08092,3089.8,3088.3,1.5]
[1641679445248,0.08092,3090.0,3088.3,1.5]
[1641679445845,2.00479,3089.1,3088.4,2.00479]
[1641679446144,2.00479,3089.1,3088.4,3.307547]
[1641679447046,1.32742652,3089.0,3088.4,3.307547]
[1641679447647,1.32742652,3089.0,3088.1,2.00479]
[1641679447845,2.00479,3088.6,3088.1,2.00479]
[1641679448046,2.00479,3088.6,3088.2,0.66197]
[1641679448250,2.00479,3088.6,3088.3,1.5]
[1641679448446,2.00479,3088.6,3088.4,0.66197]
[1641679449749,2.00479,3088.6,3088.2,0.640787]
[1641679451149,2.00479,3088.6,3088.2,1.302757]
[1641679451953,2.00479,3088.6,3088.2,2.802757]
[1641679452150,2.00479,3088.6,3088.5,1.5]
[1641679452350,35.63163,3089.7,3088.5,3.02627]
[1641679452551,0.4827,3090.0,3088.8,1.5]
[1641679452750,0.4827,3090.0,3088.5,0.8643]
[1641679452952,0.4827,3090.0,3088.8,1.5]
[1641679453152,1.12625508,3089.8,3089.0,1.5]
[1641679453351,1.12625508,3089.8,3089.1,2.802757]
[1641679453552,1.12625508,3089.8,3089.1,1.5]
[1641679453751,1.12625508,3089.8,3089.2,0.66197]
[1641679453956,3.13104508,3089.8,3089.2,1.39487]
[1641679454553,3.13104508,3089.8,3089.5,1.5]
[1641679454752,3.13104508,3089.8,3089.5,0.66197]
[1641679454953,1.61905564,3089.6,3088.1,1.5]
[1641679455155,0.08092,3089.5,3088.1,1.5]
[1641679455555,2.00479,3089.8,3087.9,1.05243141]
[1641679455952,2.00479,3089.0,3088.7,1.5]
[1641679456153,2.00479,3089.0,3088.9,1.5]
[1641679456553,2.00479,3089.8,3088.9,1.5]
[1641679456753,2.00479,3089.8,3089.1,15.55]
[1641679456956,2.00479,3089.8,3089.2,14.71197]
[1641679457156,2.00479,3089.8,3089.5,1.5]
[1641679457354,0.491,3090.8,3089.5,2.2862]
[1641679457555,0.491,3090.8,3089.6,0.66197]
[1641679457956,2.00479,3090.2,3089.6,0.66197]
[1641679458157,2.00479,3090.2,3089.7,0.640787]
[1641679458357,2.00479,3090.2,3089.8,0.66197]
[1641679458756,2.00479,3090.2,3090.0,1.5]
[1641679458960,2.00479,3090.2,3090.0,2.16197]
[1641679459957,2.00479,3090.2,3090.0,0.66197]
[1641679462662,102.27349,3091.1,3090.0,17.71197]
[1641679462864,34.0597,3091.1,3090.0,14.71197]
[1641679463061,37.24567482,3091.7,3090.3,1.5]
[1641679463262,35.4032,3091.5,3090.3,2.2152]
[1641679463461,5.49487,3091.6,3090.3,2.2152]
[1641679463662,1.33379104,3091.5,3090.3,2.2152]
[1641679463863,2.00479,3091.0,3090.3,4.21999]
[1641679464061,2.00479,3091.0,3090.4,1.302757]
[1641679464662,1.22170867,3090.9,3090.4,1.302757]
[1641679466062,1.22170867,3090.9,3090.7,1.5]
[1641679466262,2.00479,3091.0,3090.8,0.66197]
[1641679467266,2.00479,3091.0,3090.8,0.2748153]
[1641679469269,0.08087,3091.8,3090.9,3.1171757]
[1641679469568,5.414,3092.4,3091.7,1.5]
[1641679469768,0.387155,3092.3,3091.7,3.08817]
[1641679469972,2.00479,3092.0,3091.7,3.08817]
[1641679470166,2.00479,3092.0,3091.7,0.9262]
[1641679470369,0.387155,3091.9,3091.7,0.9262]
[1641679470767,0.468005,3091.9,3090.7,1.5]
[1641679471369,1.17282394,3091.8,3090.7,1.5]
[1641679471969,4.00958,3090.8,3090.2,1.5]
[1641679472169,0.387155,3090.7,3089.8,1.5]
[1641679472572,0.387155,3090.7,3090.3,1.5]
[1641679472771,4.00958,3090.8,3090.3,2.140787]
[1641679472972,4.00958,3090.8,3090.6,1.5]
[1641679473371,4.00958,3090.8,3090.5,0.66197]
[1641679473571,4.00958,3090.8,3090.3,1.5]
[1641679473771,4.00958,3090.8,3090.4,0.66197]
[1641679474072,4.00958,3090.8,3090.4,1.31737]
[1641679474774,4.00958,3090.8,3090.5,1.5]
[1641679475175,4.00958,3090.8,3090.4,1.31737]
[1641679475575,0.387155,3090.7,3090.4,0.6554]
[1641679475774,0.387155,3090.7,3089.8,1.5]
[1641679475979,2.00479,3090.1,3089.8,1.5]
[1641679476175,0.387155,3090.0,3089.8,1.5]
[1641679476375,0.387155,3090.0,3089.6,1.61797898]
[1641679477679,2.00479,3090.1,3089.6,1.61797898]
[1641679477877,2.00479,3090.1,3089.7,0.66197]
[1641679481881,2.00479,3090.1,3089.4,3.50479]
[1641679482282,0.387155,3090.0,3089.2,1.5]
[1641679482481,0.387155,3090.0,3088.3,35.38691799]
[1641679482482,0.0809,3089.9,3088.8,1.5]
[1641679482980,0.08092,3090.0,3088.8,1.5]
[1641679483182,0.08092,3090.0,3088.3,1.61861799]
[1641679483183,1.05180846,3090.0,3088.4,1.5]
[1641679483583,5.179334,3089.9,3089.2,1.5]
[1641679483783,5.179334,3089.9,3089.2,2.16197]
[1641679483784,0.0809,3089.8,3089.2,2.16197]
[1641679483983,2.00479,3089.3,3089.2,2.16197]
[1641679485786,1.41239888,3090.0,3089.2,2.16197]
[1641679486085,0.387155,3089.9,3089.2,2.93357]
[1641679486688,0.387155,3089.9,3089.7,1.5]
[1641679486888,2.00479,3090.1,3089.7,1.5]
[1641679487089,2.00479,3090.1,3089.8,1.5]
[1641679487793,2.00479,3090.1,3089.9,1.5]
[1641679487988,2.00479,3090.1,3089.9,2.1537]
[1641679489191,0.08089,3091.0,3090.0,0.66197]
[1641679489390,70.92479,3091.6,3090.4,1.5]
[1641679489791,0.08087,3091.4,3090.4,1.5]
[1641679489991,2.00479,3090.6,3090.4,1.5]
[1641679490993,2.00479,3090.6,3090.4,2.16197]
[1641679492593,2.00479,3090.6,3090.4,1.5]
[1641679494398,2.00479,3090.6,3090.5,0.66197]
[1641679495499,2.00479,3090.6,3090.4,1.5]
[1641679495697,0.387155,3090.5,3089.9,2.27149314]
[1641679495897,0.387155,3090.5,3089.9,1.61779314]
[1641679496099,2.00479,3090.1,3089.9,1.61779314]
[1641679496302,2.391945,3090.1,3090.0,1.5]
[1641679496505,2.391945,3090.1,3089.4,1.61804181]
[1641679496703,2.391945,3090.1,3089.4,2.92079881]
[1641679497211,2.391945,3090.1,3090.0,1.5]
[1641679497404,2.391945,3090.1,3089.4,0.640787]
[1641679497605,2.391945,3090.1,3090.0,1.5]
[1641679499005,2.391945,3090.1,3089.3,1.61812036]
[1641679499206,2.391945,3090.1,3090.0,1.5]
[1641679499406,2.391945,3090.1,3089.4,1.302757]
[1641679499708,2.391945,3090.1,3090.0,1.5]
[1641679500106,2.391945,3090.1,3089.8,1.5]
[1641679500306,2.391945,3090.1,3090.0,1.5]
[1641679501807,2.00479,3090.1,3090.0,1.5]
[1641679503108,2.391945,3090.1,3090.0,1.5]
[1641679505211,2.00479,3090.1,3090.0,1.5]
[1641679506613,2.00479,3090.6,3090.0,2.16197]
[1641679506811,2.00479,3090.6,3090.3,1.5]
[1641679507012,2.00479,3090.6,3090.3,2.1691]
[1641679507612,2.00479,3090.6,3090.4,0.66197]
[1641679508116,2.00479,3091.0,3090.4,2.16197]
[1641679508315,0.08089,3091.3,3090.4,0.66197]
[1641679508515,2.55001873,3091.5,3090.9,1.5]
[1641679508715,2.55001873,3091.5,3091.0,0.640787]
[1641679508915,2.55001873,3091.5,3091.0,1.943057]
[1641679510216,4.55480873,3091.5,3091.0,1.943057]
[1641679511015,2.00479,3091.5,3091.0,1.943057]
[1641679512416,0.13336691,3091.4,3091.0,1.943057]
[1641679513619,0.13336691,3091.4,3091.0,1.30227]
[1641679515626,0.387155,3091.3,3091.0,0.6403]
[1641679515821,0.387155,3091.3,3090.7,3.50479]
[1641679516024,0.387155,3091.3,3090.4,1.5]
[1641679516225,2.00479,3090.5,3090.4,1.5]
[1641679516423,2.391945,3090.5,3090.4,1.5]
[1641679516722,6.96194702,3090.5,3089.4,2.00479]
[1641679516923,0.08089,3090.4,3089.4,3.35503562]
[1641679518024,1.20772184,3090.3,3089.4,3.35503562]
[1641679518226,1.34108875,3090.3,3089.4,3.35503562]
[1641679518425,1.34108875,3090.3,3089.4,2.00479]
[1641679519527,1.34108875,3090.3,3089.4,3.50479]
[1641679519528,0.13336691,3090.2,3089.4,3.50479]
[1641679519727,0.387155,3090.1,3089.4,3.50479]
[1641679520131,0.387155,3090.1,3089.4,2.00479]
[1641679520527,0.13336691,3090.0,3089.4,2.00479]
[1641679520728,0.387155,3089.9,3089.4,2.00479]
[1641679522028,1.887155,3089.9,3089.2,2.00479]
[1641679522231,4.00958,3089.3,3089.0,1.61828533]
[1641679522429,0.387155,3089.2,3089.0,1.61828533]
[1641679522630,1.5,3089.1,3088.4,1.01937982]
[1641679522928,1.5,3088.9,3088.4,1.01937982]
[1641679523128,4.47408628,3088.6,3088.4,1.01937982]
[1641679523331,6.65198628,3088.6,3088.1,2.6551731]
[1641679523529,0.468085,3088.5,3088.1,2.6551731]
[1641679523733,0.468085,3088.5,3088.3,2.27508245]
[1641679523928,0.387155,3088.5,3088.3,2.27508245]
[1641679524130,1.42227873,3088.4,3088.3,1.56848245]
[1641679524329,1.42227873,3088.4,3088.3,1.22518245]
[1641679524330,3.42706873,3088.4,3088.3,1.22518245]
[1641679525132,3.42706873,3088.4,3087.8,2.6551731]
[1641679525331,0.387155,3088.3,3087.8,2.6551731]
[1641679525732,0.387155,3088.3,3087.3,2.00479]
[1641679525933,1.5,3088.1,3087.3,2.00479]
[1641679526134,1.5,3088.1,3086.5,38.53639616]
[1641679526135,0.387155,3088.0,3086.5,38.53639616]
[1641679526336,0.002,3087.3,3086.5,2.6551731]
[1641679526534,0.7216,3087.3,3086.5,2.6551731]
[1641679526734,0.387155,3087.2,3086.5,2.6551731]
[1641679527634,0.387155,3087.2,3086.6,1.302757]
[1641679527833,0.002,3087.3,3086.6,1.998457]
[1641679528235,0.002,3087.3,3086.8,1.5]
[1641679528435,0.002,3087.3,3086.9,0.66197]
[1641679529835,0.002,3087.3,3086.9,1.17903254]
[1641679530236,0.002,3087.3,3087.2,2.00479]
[1641679530438,0.002,3087.3,3087.2,2.66676]
[1641679531035,0.002,3087.3,3087.2,0.66197]
[1641679531635,0.002,3087.3,3086.6,0.640787]
[1641679532038,0.002,3087.3,3086.7,0.66197]
[1641679532239,2.00479,3087.0,3086.6,0.640787]
[1641679532437,2.00479,3087.0,3086.4,2.00479]
[1641679532637,2.00479,3087.0,3086.5,1.302757]
[1641679534139,2.00479,3087.0,3086.5,2.083857]
[1641679535340,2.391945,3087.0,3086.5,2.081857]
[1641679535740,2.393945,3087.0,3086.5,2.081857]
[1641679535939,2.391945,3087.0,3086.5,2.081857]
[1641679536140,2.00479,3087.0,3086.5,2.081857]
[1641679536544,35.75899,3087.7,3086.5,2.081857]
[1641679536742,0.08097,3087.8,3086.5,2.081857]
[1641679537843,0.08097,3087.8,3086.0,2.00479]
[1641679537844,1.5,3087.4,3086.0,3.62438319]
[1641679538044,1.05273967,3087.3,3086.0,3.62438319]
[1641679538346,2.00479,3086.6,3086.0,2.00479]
[1641679538544,2.00479,3086.6,3086.1,1.302757]
[1641679538746,2.00479,3086.6,3086.1,1.998757]
[1641679539146,2.00479,3086.9,3086.1,1.998757]
[1641679539344,0.389155,3086.8,3086.1,1.998757]
[1641679539745,0.081,3087.4,3086.1,1.998757]
[1641679539944,1.6197296,3087.5,3086.1,1.998757]
[1641679540345,2.00479,3087.2,3086.4,2.00479]
[1641679540545,0.387155,3087.1,3086.4,2.00479]
[1641679540745,0.387155,3087.1,3086.5,0.66197]
[1641679541146,0.387155,3087.1,3086.4,2.00479]
[1641679541353,0.002,3087.0,3086.4,2.00479]
[1641679541748,0.387155,3086.9,3086.4,2.00479]
[1641679542345,0.387155,3086.9,3086.5,0.66197]
[1641679542544,0.387155,3086.9,3086.5,1.52047]
[1641679544449,0.387155,3086.9,3086.5,0.8585]
[1641679544648,0.387155,3086.9,3086.0,2.00479]
[1641679544849,1.05289373,3086.8,3085.1,1.5]
[1641679545059,36.19249373,3086.8,3085.0,6.73822581]
[1641679545249,36.19249373,3086.8,3085.2,1.62001299]
[1641679546248,2.00479,3086.2,3085.5,2.00479]
[1641679546449,1.5,3085.7,3085.0,1.32422581]
[1641679546649,0.389155,3086.1,3084.4,1.32422581]
[1641679546650,1.5,3085.5,3084.4,1.32422581]
[1641679546852,0.08103,3085.4,3084.4,1.32422581]
[1641679547049,1.62097936,3085.1,3084.4,1.32422581]
[1641679547251,0.387155,3085.0,3084.4,1.32422581]
[1641679548253,0.387155,3085.0,3084.5,2.00479]
[1641679548453,0.002,3084.9,3084.5,2.00479]
[1641679548854,0.387155,3084.8,3084.5,2.00479]
[1641679549356,0.387155,3084.8,3083.1,1.32422581]
[1641679549553,0.387155,3084.8,3083.1,1.40527581]
[1641679550153,0.387155,3084.8,3083.1,0.08105]
[1641679550357,2.00479,3084.3,3083.6,2.00479]
[1641679550553,0.002,3084.2,3083.7,0.66197]
[1641679550756,0.389155,3084.2,3083.7,0.66197]
[1641679551356,0.389155,3084.2,3083.6,2.00479]
[1641679551555,0.387155,3084.2,3083.6,2.00479]
[1641679551755,1.01109291,3084.3,3083.6,2.66676]
[1641679551957,0.18589291,3084.3,3083.6,3.307547]
[1641679552767,0.18589291,3084.3,3083.6,2.66676]
[1641679554166,1.80726651,3084.3,3083.6,2.66676]
[1641679554569,0.18589291,3084.3,3083.6,2.66676]
[1641679555868,0.18589291,3084.3,3083.7,0.640787]
[1641679556069,0.18589291,3084.3,3083.8,0.66197]
[1641679557669,109.73989,3085.2,3083.8,0.66197]
[1641679557870,74.10329,3085.2,3083.9,0.640787]
[1641679558070,38.06789,3085.2,3083.9,0.640787]
[1641679558271,38.06789,3085.2,3084.4,2.00479]
[1641679558471,2.00479,3085.2,3084.5,0.66197]
[1641679559874,1.62111601,3084.8,3084.4,2.00479]
[1641679560172,1.58103,3085.1,3084.4,2.66676]
[1641679560373,2.00479,3084.8,3084.4,2.66676]
[1641679560773,1.62116331,3084.7,3084.4,2.66676]
[1641679561174,2.00479,3084.8,3084.4,2.66676]
[1641679562077,2.00479,3085.2,3084.4,2.66676]
[1641679562874,0.08103,3085.1,3084.4,2.66676]
[1641679564073,2.00479,3085.2,3084.4,2.66676]
[1641679564875,2.00479,3085.2,3084.4,3.40156]
[1641679565477,0.08103,3085.5,3085.1,1.5]
[1641679565678,33.90423,3086.7,3085.4,1.5]
[1641679565876,33.8232,3086.7,3085.4,1.5]
[1641679566276,34.91009725,3087.0,3085.7,3.11971648]
[1641679566277,0.081,3087.0,3085.7,3.11971648]
[1641679566475,2.00479,3086.9,3086.2,2.00479]
[1641679566676,2.00479,3086.9,3086.3,0.66197]
[1641679568281,2.00479,3086.9,3086.3,1.302757]
[1641679568680,71.79719,3087.8,3086.3,1.302757]
[1641679568879,71.7162,3087.8,3086.6,1.5]
[1641679569079,1.61928897,3088.3,3086.8,1.5]
[1641679569481,1.61928897,3088.3,3086.8,15.55]
[1641679569680,1.61928897,3088.3,3086.8,14.05]
[1641679570079,34.38406,3088.7,3087.0,15.55]
[1641679570281,0.08096,3088.7,3087.2,15.66896127]
[1641679570481,2.00479,3088.6,3087.8,2.00479]
[1641679570683,2.00479,3088.6,3087.9,1.302757]
[1641679571983,2.00279,3088.6,3087.9,1.302757]
[1641679572783,0.08094,3089.5,3087.9,1.302757]
[1641679572784,1.69961039,3089.5,3088.0,1.5]
[1641679572984,1.69961039,3089.5,3087.9,0.640787]
[1641679573786,0.08094,3089.5,3087.9,0.640787]
[1641679573985,1.58094,3089.5,3087.9,0.640787]
[1641679574185,1.5,3088.6,3087.8,2.00479]
[1641679574386,2.00479,3088.3,3087.8,2.00479]
[1641679574684,2.00479,3088.3,3087.5,2.00479]
[1641679574889,0.08096,3088.2,3087.5,2.00479]
[1641679575085,0.08096,3088.2,3087.6,0.66197]
[1641679577092,0.08096,3088.2,3087.5,2.00479]
[1641679577290,3.35880743,3088.2,3086.1,35.9124]
[1641679577493,3.35880743,3088.2,3085.3,0.08097]
[1641679577689,1.5,3087.8,3085.7,1.5]
[1641679577891,1.05261055,3087.7,3085.6,1.5]
[1641679578291,2.55261055,3087.7,3085.6,1.5]
[1641679578590,2.00479,3087.0,3086.3,2.00479]
[1641679578792,2.90339,3087.0,3086.3,2.00479]
[1641679578990,0.08099,3086.9,3086.3,2.00479]
[1641679579190,2.00479,3087.0,3086.4,1.302757]
[1641679579391,2.00479,3087.0,3086.4,1.999357]
[1641679581593,0.08099,3087.7,3086.6,1.5]
[1641679581795,71.92242306,3088.2,3086.6,1.5]
[1641679581796,70.3031,3088.2,3086.6,1.5]
[1641679581994,34.6348,3088.2,3086.6,1.5]
[1641679582195,34.6348,3088.2,3086.6,3.11924964]
[1641679582395,2.00479,3088.1,3087.3,2.00479]
[1641679582597,2.00479,3088.1,3087.4,0.66197]
[1641679583295,2.00479,3088.1,3087.5,0.640787]
[1641679583496,2.00479,3088.1,3087.6,0.66197]
[1641679584397,2.00479,3088.4,3087.6,0.66197]
[1641679584597,0.8241586,3088.9,3087.7,1.5]
[1641679584799,0.8241586,3088.9,3087.9,1.61859703]
[1641679585201,0.8241586,3088.9,3087.7,1.58093]
[1641679585397,0.8241586,3088.9,3087.7,1.5]
[1641679585799,32.8733,3089.4,3087.6,0.08094]
[1641679585800,0.8241586,3089.2,3087.6,1.69969686]
[1641679585997,0.08093,3089.1,3087.5,2.140787]
[1641679586399,2.08572,3089.1,3088.4,2.00479]
[1641679586599,2.00479,3089.1,3088.5,1.302757]
[1641679587200,2.00479,3089.1,3088.5,0.66197]
[1641679589298,2.00479,3089.1,3088.5,1.302757]
[1641679590903,0.08092,3089.7,3088.9,1.5]
[1641679591103,2.00479,3089.8,3089.0,0.66197]
[1641679592305,2.00479,3089.8,3088.5,0.640787]
[1641679592502,2.00479,3089.4,3088.4,3.62309628]
[1641679592702,0.08092,3089.3,3088.4,2.00479]
[1641679593903,2.00479,3089.4,3088.4,2.00479]
[1641679594103,2.00479,3089.4,3088.4,2.63069]
[1641679594403,4.00958,3089.4,3088.5,1.5]
[1641679594603,4.00958,3089.4,3088.4,2.63069]
[1641679595408,4.00958,3089.4,3088.7,1.5]
[1641679595606,68.5102786,3090.5,3088.9,1.5]
[1641679595806,68.4293586,3090.5,3088.8,2.140787]
[1641679596009,35.24088943,3090.5,3088.9,14.05]
[1641679596207,34.41673083,3090.5,3088.9,14.05]
[1641679596406,2.00479,3090.1,3089.4,2.00479]
[1641679596607,2.00479,3090.1,3089.5,0.66197]
[1641679597509,2.00479,3090.1,3089.6,0.640787]
[1641679597719,2.00479,3090.1,3089.7,0.66197]
[1641679599708,2.00479,3090.1,3089.4,2.84659]
[1641679599909,2.00479,3090.1,3089.4,2.00479]
[1641679600310,0.0809,3090.0,3089.4,2.00479]
[1641679601113,0.0809,3090.0,3089.4,2.645577]
[1641679601317,2.08569,3090.1,3089.4,2.645577]
[1641679602117,2.08569,3090.1,3089.4,2.00479]
[1641679604922,2.08569,3090.1,3089.4,2.645577]
[1641679605724,3.70403557,3090.1,3089.4,2.645577]
[1641679606125,3.70403557,3090.1,3089.4,2.00479]
[1641679606321,2.08569,3090.1,3089.4,2.00479]
[1641679607323,2.00479,3090.1,3089.4,2.00479]
[1641679607722,1.5,3089.5,3088.4,2.00479]